lending/lending_fUSD_20250917
["ID","MTS","AMOUNT","RATE_DAILY","PERIOD"]
[385956996,1758151845506,-488.26,0.00021917,2]
[385956997,1758151845516,-327.740013,0.00021917,2]
[385956998,1758151845526,-327.740013,0.00021917,2]
[385956999,1758151845535,-400.0,0.00021917,2]
[385957000,1758151845545,-400.0,0.00021917,2]
[385957001,1758151845554,-400.0,0.00021917,2]
[385957002,1758151845563,-327.740013,0.00021917,2]
[385957003,1758151845573,-327.740013,0.00021917,2]
[385957004,1758151845582,-404.45084647,0.00021917,2]
[385957005,1758151845591,-400.0,0.00021917,2]
[385957006,1758151845602,-400.0,0.00021917,2]
[385957007,1758151845611,-327.740013,0.00021917,2]
[385957008,1758151845621,-327.740013,0.00021917,2]
[385957009,1758151845630,-400.0,0.00021917,2]
[385957010,1758151845639,-400.0,0.00021917,2]
[385957011,1758151845648,-327.740013,0.00021917,2]
[385957012,1758151845657,-400.0,0.00021917,2]
[385957013,1758151845667,-327.740013,0.00021917,2]
[385957014,1758151845676,-400.0,0.00021917,2]
[385957015,1758151845685,-400.0,0.00021917,2]
[385957016,1758151845695,-1220.63,0.00021917,2]
[385957017,1758151845704,-400.0,0.00021917,2]
[385957018,1758151845713,-400.0,0.00021917,2]
[385957019,1758151845722,-151.0,0.00021917,2]
[385957020,1758151845731,-151.0,0.00021917,2]
[385957021,1758151845740,-400.0,0.00021917,2]
[385957022,1758151845750,-402.48593316,0.00021917,2]
[385957023,1758151845759,-400.0,0.00021917,2]
[385957024,1758151845768,-400.0,0.00021917,2]
[385957025,1758151845777,-401.17979285,0.00021917,2]
[385957026,1758151845786,-400.0,0.00021917,2]
[385957027,1758151845795,-493.88,0.00021917,2]
[385957028,1758151845804,-400.0,0.00021917,2]
[385957029,1758151845813,-400.0,0.00021917,2]
[385957030,1758151845823,-400.0,0.00021917,2]
[385957031,1758151845832,-400.0,0.00021917,2]
[385957032,1758151845841,-400.0,0.00021917,2]
[385957033,1758151845851,-400.0,0.00021917,2]
[385957034,1758151845860,-151.0,0.00021917,2]
[385957035,1758151845869,-151.0,0.00021917,2]
[385957036,1758151845878,-400.0,0.00021917,2]
[385957037,1758151845887,-400.0,0.00021917,2]
[385957038,1758151845897,-400.0,0.00021917,2]
[385957039,1758151845906,-400.0,0.00021917,2]
[385957040,1758151845915,-400.0,0.00021917,2]
[385957041,1758151845924,-989.07,0.00021917,2]
[385957042,1758151845934,-492.41,0.00021917,2]
[385957043,1758151845943,-400.0,0.00021917,2]
[385957045,1758151845952,-400.0,0.00021917,2]
[385957046,1758151845962,-400.0,0.00021917,2]
[385957048,1758151845971,-400.0,0.00021917,2]
[385957050,1758151845980,-458.02297151,0.00021917,2]
[385957052,1758151845989,-400.0,0.00021917,2]
[385957054,1758151845998,-151.0,0.00021917,2]
[385957055,1758151846007,-400.0,0.00021917,2]
[385957056,1758151846016,-151.0,0.00021917,2]
[385957057,1758151846025,-413.20091319,0.00021917,2]
[385957058,1758151846034,-400.0,0.00021917,2]
[385957059,1758151846043,-400.0,0.00021917,2]
[385957060,1758151846053,-400.0,0.00021917,2]
[385957061,1758151846062,-400.0,0.00021917,2]
[385957062,1758151846071,-400.0,0.00021917,2]
[385957063,1758151846080,-400.0,0.00021917,2]
[385957064,1758151846089,-400.0,0.00021917,2]
[385957065,1758151846099,-299.650652,0.00021917,2]
[385957066,1758151846108,-151.0,0.00021917,2]
[385957067,1758151846117,-151.0,0.00021917,2]
[385957068,1758151846126,-400.0,0.00021917,2]
[385957069,1758151846136,-400.0,0.00021917,2]
[385957070,1758151846149,-400.0,0.00021917,2]
[385957071,1758151846158,-506.5254365,0.00021917,2]
[385957072,1758151846167,-400.0,0.00021917,2]
[385957073,1758151846176,-400.0,0.00021917,2]
[385957074,1758151846186,-403.58514021,0.00021917,2]
[385957075,1758151846195,-151.0,0.00021917,2]
[385957076,1758151846204,-412.63,0.00021917,2]
[385957077,1758151846213,-151.0,0.00021917,2]
[385957078,1758151846222,-151.0,0.00021917,2]
[385957079,1758151846232,-500.0,0.00021917,2]
[385957080,1758151846241,-400.0,0.00021917,2]
[385957081,1758151846249,-151.0,0.00021917,2]
[385957082,1758151846258,-257.039189,0.00021917,2]
[385957083,1758151846267,-400.0,0.00021917,2]
[385957084,1758151846275,-400.0,0.00021917,2]
[385957085,1758151846284,-400.0,0.00021917,2]
[385957086,1758151846293,-151.0,0.00021917,2]
[385957087,1758151846302,-400.0,0.00021917,2]
[385957088,1758151846311,-151.0,0.00021917,2]
[385957089,1758151846320,-400.0,0.00021917,2]
[385957090,1758151846329,-151.0,0.00021917,2]
[385957091,1758151846338,-151.0,0.00021917,2]
[385957092,1758151846347,-400.0,0.00021917,2]
[385957093,1758151846357,-400.0,0.00021917,2]
[385957094,1758151846365,-500.0,0.00021917,2]
[385957095,1758151846374,-151.0,0.00021917,2]
[385957096,1758151846384,-400.0,0.00021917,2]
[385957097,1758151846393,-151.0,0.00021917,2]
[385957098,1758151846402,-400.0,0.00021917,2]
[385957099,1758151846412,-151.0,0.00021917,2]
[385957100,1758151846421,-151.0,0.00021917,2]
[385957101,1758151846431,-400.0,0.00021917,2]
[385957102,1758151846440,-151.0,0.00021917,2]
[385957103,1758151846450,-151.0,0.00021917,2]
[385957104,1758151846460,-400.0,0.00021917,2]
[385957105,1758151846469,-226.514936,0.00021917,2]
[385957106,1758151846478,-497.68,0.00021917,2]
[385957107,1758151846488,-400.0,0.00021917,2]
[385957108,1758151846497,-509.5,0.00021917,2]
[385957109,1758151846507,-151.0,0.00021917,2]
[385957110,1758151846517,-400.0,0.00021917,2]
[385957111,1758151846527,-209.757563,0.00021917,2]
[385957112,1758151846536,-400.0,0.00021917,2]
[385957113,1758151846546,-400.0,0.00021917,2]
[385957114,1758151846555,-209.757563,0.00021917,2]
[385957115,1758151846565,-400.0,0.00021917,2]
[385957116,1758151846576,-209.757563,0.00021917,2]
[385957117,1758151846586,-400.0,0.00021917,2]
[385957118,1758151846597,-209.757563,0.00021917,2]
[385957119,1758151846608,-209.757563,0.00021917,2]
[385957120,1758151846618,-209.757563,0.00021917,2]
[385957121,1758151846629,-209.757563,0.00021917,2]
[385957122,1758151846639,-209.757563,0.00021917,2]
[385957123,1758151846650,-400.0,0.00021917,2]
[385957124,1758151846662,-400.0,0.00021917,2]
[385957125,1758151846673,-400.0,0.00021917,2]
[385957126,1758151846684,-400.0,0.00021917,2]
[385957127,1758151846696,-400.0,0.00021917,2]
[385957128,1758151846707,-400.0,0.00021917,2]
[385957129,1758151846718,-237.06875885,0.00021917,2]
[385957130,1758151846729,-151.0,0.00021917,2]
[385957131,1758151846740,-151.0,0.00021917,2]
[385957132,1758151846751,-400.0,0.00021917,2]
[385957133,1758151846763,-151.0,0.00021917,2]
[385957134,1758151846774,-233.745268,0.00021917,2]
[385957135,1758151846785,-266.78650015,0.00021917,2]
[385957136,1758151846797,-400.0,0.00021917,2]
[385957137,1758151846808,-400.0,0.00021917,2]
[385957138,1758151846820,-400.0,0.00021917,2]
[385957139,1758151846830,-1275.34,0.00021917,2]
[385957140,1758151846841,-400.0,0.00021917,2]
[385957141,1758151846853,-400.0,0.00021917,2]
[385957142,1758151846864,-400.0,0.00021917,2]
[385957143,1758151846875,-400.0,0.00021917,2]
[385957144,1758151846886,-400.0,0.00021917,2]
[385957145,1758151846897,-471.26,0.00021917,2]
[385957146,1758151846908,-151.0,0.00021917,2]
[385957147,1758151846917,-151.0,0.00021917,2]
[385957148,1758151846928,-627.82,0.00021917,2]
[385957149,1758151846938,-178.819184,0.00021917,2]
[385957150,1758151846948,-400.0,0.00021917,2]
[385957151,1758151846957,-151.0,0.00021917,2]
[385957152,1758151846967,-400.0,0.00021917,2]
[385957153,1758151846977,-151.0,0.00021917,2]
[385957154,1758151846986,-151.0,0.00021917,2]
[385957155,1758151846996,-400.0,0.00021917,2]
[385957156,1758151847006,-400.0,0.00021917,2]
[385957157,1758151847016,-527.92,0.00021917,2]
[385957158,1758151847025,-400.0,0.00021917,2]
[385957159,1758151847035,-400.0,0.00021917,2]
[385957160,1758151847045,-400.0,0.00021917,2]
[385957161,1758151847054,-1083.04,0.00021917,2]
[385957162,1758151847065,-400.0,0.00021917,2]
[385957163,1758151847075,-400.0,0.00021917,2]
[385957164,1758151847085,-400.0,0.00021917,2]
[385957165,1758151847095,-400.0,0.00021917,2]
[385957166,1758151847105,-400.0,0.00021917,2]
[385957167,1758151847115,-152.528622,0.00021917,2]
[385957168,1758151847125,-555.85,0.00021917,2]
[385957169,1758151847135,-400.0,0.00021917,2]
[385957170,1758151847145,-1969.05,0.00021917,2]
[385957171,1758151847157,-400.0,0.00021917,2]
[385957172,1758151847167,-400.0,0.00021917,2]
[385957173,1758151847177,-400.0,0.00021917,2]
[385957174,1758151847187,-400.0,0.00021917,2]
[385957175,1758151847196,-186.48297594,0.00021917,2]
[385957176,1758151847206,-1186.95,0.00021917,2]
[385957177,1758151847215,-400.0,0.00021917,2]
[385957178,1758151847226,-400.0,0.00021917,2]
[385957179,1758151847235,-151.0,0.00021917,2]
[385957180,1758151847245,-400.0,0.00021917,2]
[385957181,1758151847256,-151.0,0.00021917,2]
[385957182,1758151847265,-151.0,0.00021917,2]
[385957183,1758151847275,-283.408488,0.00021917,2]
[385957184,1758151847285,-400.0,0.00021917,2]
[385957185,1758151847296,-598.98,0.00021917,2]
[385957186,1758151847306,-400.0,0.00021917,2]
[385957187,1758151847316,-492.87,0.00021917,2]
[385957188,1758151847326,-400.0,0.00021917,2]
[385957189,1758151847336,-151.0,0.00021917,2]
[385957190,1758151847346,-400.0,0.00021917,2]
[385957191,1758151847356,-151.0,0.00021917,2]
[385957192,1758151847366,-2586.23,0.00021917,2]
[385957193,1758151847376,-151.0,0.00021917,2]
[385957194,1758151847386,-400.0,0.00021917,2]
[385957195,1758151847397,-153.280324,0.00021917,2]
[385957196,1758151847407,-151.0,0.00021917,2]
[385957197,1758151847416,-400.0,0.00021917,2]
[385957198,1758151847426,-151.0,0.00021917,2]
[385957199,1758151847436,-151.0,0.00021917,2]
[385957200,1758151847447,-400.0,0.00021917,2]
[385957201,1758151847456,-151.0,0.00021917,2]
[385957202,1758151847467,-151.0,0.00021917,2]
[385957203,1758151847477,-204.880582,0.00021917,2]
[385957204,1758151847487,-151.0,0.00021917,2]
[385957205,1758151847497,-151.0,0.00021917,2]
[385957206,1758151847507,-151.0,0.00021917,2]
[385957207,1758151847518,-400.0,0.00021917,2]
[385957208,1758151847528,-400.0,0.00021917,2]
[385957209,1758151847537,-400.0,0.00021917,2]
[385957210,1758151847547,-400.0,0.00021917,2]
[385957211,1758151847557,-1852.59,0.00021917,2]
[385957212,1758151847567,-400.0,0.00021917,2]
[385957213,1758151847578,-400.0,0.00021917,2]
[385957214,1758151847588,-400.0,0.00021917,2]
[385957215,1758151847598,-514.67,0.00021917,2]
[385957216,1758151847608,-400.0,0.00021917,2]
[385957217,1758151847618,-400.0,0.00021917,2]
[385957218,1758151847628,-400.0,0.00021917,2]
[385957219,1758151847643,-400.0,0.00021917,2]
[385957220,1758151847654,-400.0,0.00021917,2]
[385957221,1758151847664,-400.0,0.00021917,2]
[385957222,1758151847674,-400.0,0.00021917,2]
[385957223,1758151847685,-884.5,0.00021917,2]
[385957224,1758151847696,-400.0,0.00021917,2]
[385957225,1758151847706,-400.0,0.00021917,2]
[385957226,1758151847716,-400.0,0.00021917,2]
[385957227,1758151847726,-400.0,0.00021917,2]
[385957228,1758151847736,-1302.9,0.00021917,2]
[385957229,1758151847746,-400.0,0.00021917,2]
[385957230,1758151847756,-590.96,0.00021917,2]
[385957231,1758151847767,-400.0,0.00021917,2]
[385957232,1758151847777,-400.0,0.00021917,2]
[385957233,1758151847787,-1085.22,0.00021917,2]
[385957234,1758151847797,-400.0,0.00021917,2]
[385957235,1758151847808,-400.0,0.00021917,2]
[385957236,1758151847818,-1595.81,0.00021917,2]
[385957237,1758151847828,-400.0,0.00021917,2]
[385957238,1758151847838,-400.0,0.00021917,2]
[385957239,1758151847849,-562.28,0.00021917,2]
[385957240,1758151847859,-400.0,0.00021917,2]
[385957241,1758151847869,-400.0,0.00021917,2]
[385957242,1758151847879,-527.19,0.00021917,2]
[385957243,1758151847889,-400.0,0.00021917,2]
[385957244,1758151847899,-400.0,0.00021917,2]
[385957245,1758151847909,-400.0,0.00021917,2]
[385957246,1758151847919,-400.0,0.00021917,2]
[385957247,1758151847930,-400.0,0.00021917,2]
[385957248,1758151847940,-205.944107,0.00021917,2]
[385957249,1758151847950,-400.0,0.00021917,2]
[385957250,1758151847960,-400.0,0.00021917,2]
[385957251,1758151847970,-400.0,0.00021917,2]
[385957252,1758151847980,-205.944107,0.00021917,2]
[385957253,1758151847990,-404.08,0.00021917,2]
[385957254,1758151848000,-205.944107,0.00021917,2]
[385957255,1758151848010,-411.81,0.00021917,2]
[385957256,1758151848020,-205.944107,0.00021917,2]
[385957257,1758151848030,-205.944107,0.00021917,2]
[385957258,1758151848040,-205.944107,0.00021917,2]
[385957259,1758151848050,-400.0,0.00021917,2]
[385957260,1758151848060,-400.0,0.00021917,2]
[385957261,1758151848070,-400.0,0.00021917,2]
[385957262,1758151848079,-205.944107,0.00021917,2]
[385957263,1758151848089,-205.944107,0.00021917,2]
[385957264,1758151848099,-205.944107,0.00021917,2]
[385957265,1758151848110,-400.0,0.00021917,2]
[385957266,1758151848120,-205.944107,0.00021917,2]
[385957267,1758151848130,-205.944107,0.00021917,2]
[385957268,1758151848141,-400.0,0.00021917,2]
[385957269,1758151848154,-205.944107,0.00021917,2]
[385957270,1758151848164,-400.0,0.00021917,2]
[385957271,1758151848174,-507.85,0.00021917,2]
[385957272,1758151848184,-398.0,0.00021917,2]
[385957273,1758151848194,-151.0,0.00021917,2]
[385957274,1758151848204,-1454.746195,0.00021917,2]
[385957275,1758151848214,-151.0,0.00021917,2]
[385957276,1758151848226,-1454.746195,0.00021917,2]
[385957277,1758151848236,-400.0,0.00021917,2]
[385957278,1758151848246,-151.0,0.00021917,2]
[385957279,1758151848256,-1454.746195,0.00021917,2]
[385957280,1758151848266,-151.0,0.00021917,2]
[385957281,1758151848275,-151.0,0.00021917,2]
[385957282,1758151848285,-151.0,0.00021917,2]
[385957283,1758151848295,-151.0,0.00021917,2]
[385957284,1758151848305,-400.0,0.00021917,2]
[385957285,1758151848315,-1454.746195,0.00021917,2]
[385957286,1758151848325,-159.734579,0.00021917,2]
[385957287,1758151848336,-1454.746195,0.00021917,2]
[385957288,1758151848346,-1454.746195,0.00021917,2]
[385957289,1758151848356,-151.0,0.00021917,2]
[385957290,1758151848366,-151.0,0.00021917,2]
[385957291,1758151848376,-151.0,0.00021917,2]
[385957292,1758151848386,-151.0,0.00021917,2]
[385957293,1758151848395,-430.25,0.00021917,2]
[385957294,1758151848405,-400.0,0.00021917,2]
[385957295,1758151848415,-151.0,0.00021917,2]
[385957296,1758151848425,-151.0,0.00021917,2]
[385957297,1758151848435,-448.39,0.00021917,2]
[385957298,1758151848445,-1454.746195,0.00021917,2]
[385957299,1758151848454,-1454.746195,0.00021917,2]
[385957300,1758151848464,-1454.746195,0.00021917,2]
[385957301,1758151848474,-189.794756,0.00021917,2]
[385957302,1758151848484,-1454.746195,0.00021917,2]
[385957303,1758151848494,-400.0,0.00021917,2]
[385957304,1758151848504,-1454.746195,0.00021917,2]
[385957305,1758151848514,-469.25,0.00021917,2]
[385957306,1758151848524,-1454.746195,0.00021917,2]
[385957307,1758151848535,-151.0,0.00021917,2]
[385957308,1758151848545,-151.0,0.00021917,2]
[385957309,1758151848556,-400.0,0.00021917,2]
[385957310,1758151848566,-400.0,0.00021917,2]
[385957311,1758151848576,-153.871247,0.00021917,2]
[385957312,1758151848586,-500.0,0.00021917,2]
[385957313,1758151848597,-400.0,0.00021917,2]
[385957314,1758151848607,-400.0,0.00021917,2]
[385957315,1758151848617,-151.0,0.00021917,2]
[385957316,1758151848627,-151.0,0.00021917,2]
[385957317,1758151848637,-400.0,0.00021917,2]
[385957318,1758151848648,-151.0,0.00021917,2]
[385957319,1758151848657,-400.0,0.00021917,2]
[385957320,1758151848667,-400.0,0.00021917,2]
[385957321,1758151848677,-400.0,0.00021917,2]
[385957322,1758151848686,-400.0,0.00021917,2]
[385957323,1758151848696,-400.0,0.00021917,2]
[385957324,1758151848955,-400.0,0.00021917,2]
[385957325,1758151848966,-400.0,0.00021917,2]
[385957326,1758151848975,-400.0,0.00021917,2]
[385957327,1758151848984,-1077.800283,0.00021917,2]
[385957328,1758151848993,-400.0,0.00021917,2]
[385957329,1758151849002,-33.59013882,0.00021917,2]
[385957330,1758151850038,-778.344483,0.00021917,2]
[385957331,1758151850049,-265.86566118,0.00021917,2]
[385957332,1758151850059,-423.47646092,0.00021917,2]
[385957333,1758151850110,-654.32382208,0.00021917,2]
[385957334,1758151850119,-400.0,0.00021917,2]
[385957335,1758151850129,-485.2,0.00021917,2]
[385957336,1758151850139,-1077.800283,0.00021917,2]
[385957337,1758151850148,-1077.800283,0.00021917,2]
[385957338,1758151850159,-1077.800283,0.00021917,2]
[385957339,1758151850169,-1077.800283,0.00021917,2]
[385957340,1758151850179,-400.0,0.00021917,2]
[385957341,1758151850188,-1077.800283,0.00021917,2]
[385957342,1758151850198,-1077.800283,0.00021917,2]
[385957343,1758151850207,-400.0,0.00021917,2]
[385957344,1758151850216,-400.0,0.00021917,2]
[385957345,1758151850227,-1012.48622225,0.00021917,2]
[385957346,1758151850580,-873.99998202,0.00021783,2]
[385957350,1758151953614,500.0,0.00013699,2]
[385957353,1758152206941,273.0,0.000197,2]
[385957359,1758152393166,1425.0,0.00019535,2]
[385957360,1758152393368,798.40473582,0.0001955,2]
[385957366,1758152727958,222.4,0.0002,21]
[385957367,1758152739058,268.0,0.000187,2]
[385957368,1758152739990,263.0,0.0001988,2]
[385957373,1758152946710,177.66,0.00010304,2]
[385957374,1758152946943,177.66,0.00010846,2]
[385957375,1758152947223,177.66,0.00011388,2]
[385957376,1758152947381,177.66,0.00011931,2]
[385957377,1758152947593,177.66,0.00012473,2]
[385957378,1758152947810,177.66,0.00013015,2]
[385957379,1758152948023,177.66,0.00013558,2]
[385957380,1758152948267,177.66,0.000141,2]
[385957381,1758152948446,177.66,0.00014642,2]
[385957382,1758152948643,177.66,0.00015184,2]
[385957383,1758152949048,177.66,0.00015727,2]
[385957384,1758152949270,177.66,0.00016269,2]
[385957385,1758152949475,177.66,0.00016811,2]
[385957386,1758152949950,177.66,0.00017354,2]
[385957387,1758152950162,177.66,0.00017896,2]
[385957388,1758152950611,177.66,0.00018438,2]
[385957389,1758152950823,177.66,0.00018981,2]
[385957390,1758152951028,177.66,0.00019523,2]
[385957396,1758153031847,-177.66,0.00020065,2]
[385957397,1758153031858,-250.0,0.0002013,2]
[385957398,1758153031868,-12.90810984,0.00020195,2]
[385957399,1758153031879,-137.09189016,0.00020195,2]
[385957400,1758153031889,-150.0,0.00020195,2]
[385957401,1758153031899,-150.0,0.00020195,2]
[385957402,1758153031909,-150.0,0.00020195,2]
[385957403,1758153031918,-150.0,0.00020195,2]
[385957404,1758153031928,-150.0,0.00020195,2]
[385957405,1758153031939,-186.99390288,0.00020507,2]
[385957406,1758153031948,-150.0,0.00020597,7]
[385957407,1758153031957,-150.0,0.00020605,2]
[385957408,1758153031967,-177.66,0.00020607,2]
[385957409,1758153031976,-309.6469568,0.00020659,2]
[385957410,1758153031987,-510.0,0.00020659,2]
[385957411,1758153031999,-380.3530432,0.00020659,2]
[385957412,1758153032008,-158.96757621,0.0002066,2]
[385957413,1758153032020,-141.03242379,0.0002066,2]
[385957414,1758153032029,-403.71,0.00020661,2]
[385957415,1758153032039,-2497.91246442,0.00020661,2]
[385957416,1758153032050,-679.77511999,0.00020661,2]
[385957417,1758153032062,-693.66,0.00020661,2]
[385957418,1758153032073,-568.74971864,0.00020661,2]
[385957419,1758153032085,-559.90269695,0.00020661,2]
[385957420,1758153032095,-645.48270648,0.00020763,3]
[385957421,1758153032106,-20.51729352,0.00020763,3]
[385957422,1758153032116,-150.0,0.00020942,4]
[385957423,1758153032125,-130.72270648,0.00020946,2]
[385957424,1758153032150,-250.0,0.00020514,2]
[385957425,1758153032160,-210.92729352,0.00020946,2]
[385957426,1758153032169,-191.81146101,0.0002101,2]
[385957427,1758153032181,-56.9038572,0.0002101,2]
[385957429,1758153032191,-257.0,0.0002107,2]
[385957431,1758153032200,-150.0,0.00021316,4]
[385957433,1758153032210,-803.73,0.00021378,2]
[385957435,1758153032220,-2000.0,0.000214,2]
[385957437,1758153032229,-815.31067112,0.00021409,2]
[385957439,1758153032241,-240.68783108,0.00021409,2]
[385957441,1758153032250,-8787.9083148,0.0002141,2]
[385957443,1758153032261,-3639.02725584,0.0002141,2]
[385957446,1758153032280,-3449.40786202,0.0002141,2]
[385957449,1758153032291,-14027.65569903,0.0002141,2]
[385957451,1758153032303,-3349.55286831,0.0002141,2]
[385957453,1758153032312,-583.95575899,0.0002141,2]
[385957455,1758153032323,-416.04424101,0.0002141,2]
[385957457,1758153032333,-834.92300604,0.000215,3]
[385957459,1758153032344,-360.63,0.000215,3]
[385957461,1758153032356,-2042.44699396,0.000215,3]
[385957464,1758153032366,-850.80738416,0.00021525,2]
[385957467,1758153032375,-421.40426531,0.00021668,2]
[385957469,1758153032385,-150.0,0.0002169,4]
[385957471,1758153032395,-403.71,0.00021694,2]
[385957472,1758153032404,-1289.38168,0.000217,2]
[385957475,1758153032413,-427.719999,0.00021726,2]
[385957477,1758153032423,-10000.0,0.0002173,2]
[385957479,1758153032432,-168.0,0.00021772,2]
[385957481,1758153032443,-500.0,0.00021799,2]
[385957483,1758153032452,-500.0,0.00021799,2]
[385957485,1758153032462,-500.0,0.00021799,2]
[385957487,1758153032472,-500.0,0.00021799,2]
[385957489,1758153032481,-500.0,0.00021799,2]
[385957491,1758153032491,-12.5171607,0.00021799,2]
[385957494,1758153032507,-487.4828393,0.00021799,2]
[385957495,1758153032516,-500.0,0.00021799,2]
[385957498,1758153032526,-500.0,0.00021799,2]
[385957500,1758153032535,-249.32717493,0.00021799,2]
[385957501,1758153032548,-376.32180635,0.000218,3]
[385957504,1758153032563,-763.29645264,0.000218,3]
[385957566,1758153038224,-1331.8208,0.000218,3]
[385957567,1758153038236,-1719.50432863,0.000218,3]
[385957568,1758153038247,-7303.83089754,0.000218,3]
[385957699,1758153039812,-5000.00434486,0.000218,3]
[385957702,1758153039832,-43821.59957134,0.000218,3]
[385957704,1758153039841,-213.18994792,0.000218,3]
[385957706,1758153039850,-5513.0,0.000218,5]
[385957707,1758153039859,-5000.0,0.00021817,2]
[385957710,1758153039869,-1181.7555,0.00021817,2]
[385957711,1758153039878,-395.34420114,0.00021817,2]
[385957714,1758153039888,-307.04805189,0.00021817,2]
[385957716,1758153039897,-150.0,0.00021849,2]
[385957718,1758153039906,-168.0,0.00021868,2]
[385957720,1758153039916,-60000.0,0.000219,3]
[385957721,1758153039925,-487.98,0.00021903,2]
[385957723,1758153039934,-487.98,0.00021907,2]
[385957725,1758153039943,-487.98,0.00021907,2]
[385957727,1758153039953,-487.98,0.00021907,2]
[385957729,1758153039962,-1132.77,0.00021907,2]
[385957731,1758153039971,-1441.2765225,0.00021913,2]
[385957733,1758153039980,-1292.1336363,0.00021913,2]
[385957735,1758153039989,-278.64,0.00021914,2]
[385957737,1758153039999,-500.0,0.00021916,2]
[385957739,1758153040008,-181.95648422,0.00021916,2]
[385957741,1758153040018,-150.0,0.00021916,2]
[385957743,1758153040027,-500.0,0.00021916,2]
[385957745,1758153040036,-1000.0,0.00021917,2]
[385957747,1758153040045,-856.16858416,0.00021917,2]
[385957749,1758153040054,-400.0,0.00021917,2]
[385957750,1758153040063,-400.0,0.00021917,2]
[385957751,1758153040075,-401.38721565,0.00021917,2]
[385957752,1758153040085,-400.0,0.00021917,2]
[385957753,1758153040096,-400.0,0.00021917,2]
[385957754,1758153040105,-400.0,0.00021917,2]
[385957755,1758153040115,-400.85423064,0.00021917,2]
[385957756,1758153040124,-401.29505799,0.00021917,2]
[385957757,1758153040133,-400.0,0.00021917,2]
[385957758,1758153040142,-400.0,0.00021917,2]
[385957760,1758153040151,-400.0,0.00021917,2]
[385957762,1758153040160,-400.0,0.00021917,2]
[385957764,1758153040169,-400.0,0.00021917,2]
[385957766,1758153040178,-400.0,0.00021917,2]
[385957768,1758153040187,-300.34120483,0.00021917,2]
[385957770,1758153040196,-400.0,0.00021917,2]
[385957772,1758153040206,-184.90656621,0.00021917,2]
[385957774,1758153040217,-400.0,0.00021917,2]
[385957776,1758153040226,-400.0,0.00021917,2]
[385957779,1758153040235,-400.0,0.00021917,2]
[385957782,1758153040250,-168.490053,0.00021917,2]
[385957784,1758153040261,-400.0,0.00021917,2]
[385957786,1758153040271,-400.0,0.00021917,2]
[385957788,1758153040280,-200.0,0.00021917,2]
[385957790,1758153040290,-400.0,0.00021917,2]
[385957791,1758153040299,-451.84627961,0.00021917,2]
[385957792,1758153040308,-400.0,0.00021917,2]
[385957793,1758153040317,-400.0,0.00021917,2]
[385957794,1758153040327,-400.0,0.00021917,2]
[385957795,1758153040336,-423.40716279,0.00021917,2]
[385957796,1758153040345,-400.0,0.00021917,2]
[385957797,1758153040354,-400.0,0.00021917,2]
[385957798,1758153040363,-400.0,0.00021917,2]